bitfinex/quotes_ETHUSD_20250730
["timestamp","ask_amount","ask_price","bid_price","bid_amount"]
[1753852156947,0.1312,3806.8,3806.5,0.8908]
[1753852157144,0.1312,3806.8,3806.6,0.8908]
[1753852157361,0.1312,3806.8,3806.7,0.8908]
[1753852158125,0.31222102,3807.8,3806.8,0.7365]
[1753852158461,0.1312,3807.3,3806.8,4.25416236]
[1753852158659,0.1312,3807.3,3806.9,3.51758556]
[1753852158825,4.098,3807.5,3807.0,2.62667672]
[1753852159161,4.098,3807.5,3807.0,0.8908]
[1753852159354,0.1312,3807.4,3807.0,0.4536]
[1753852159531,0.1312,3807.4,3807.1,0.4372]
[1753852159932,4.099,3807.7,3807.2,0.4536]
[1753852160131,0.1312,3807.5,3807.3,0.8908]
[1753852160330,0.1312,3807.5,3807.4,0.4372]
[1753852160957,0.1312,3807.5,3807.0,0.4536]
[1753852161158,0.1312,3807.5,3807.1,0.4372]
[1753852161330,0.1312,3807.5,3807.1,0.8908]
[1753852161533,0.55422,3807.5,3806.8,0.7365]
[1753852161731,1.01122,3807.5,3806.8,1.3049]
[1753852162463,0.55422,3807.5,3806.8,0.8677]
[1753852162765,0.55422,3807.5,3806.9,0.8908]
[1753852162962,0.1312,3807.5,3807.0,0.8908]
[1753852163132,0.1312,3807.9,3807.5,0.7365]
[1753852163484,4.096,3808.2,3807.5,0.7365]
[1753852163485,0.1312,3808.0,3807.6,0.8908]
[1753852163638,3.0,3808.7,3807.7,0.8908]
[1753852163984,0.04,3808.9,3807.6,2.62626456]
[1753852163985,0.1312,3808.5,3807.9,0.8677]
[1753852164146,0.1312,3808.5,3808.0,0.8908]
[1753852164524,0.1312,3808.5,3808.1,0.8908]
[1753852164951,0.1312,3808.5,3808.2,0.8908]
[1753852165347,0.1312,3808.5,3808.3,0.8908]
[1753852165634,0.1312,3808.5,3808.4,0.4372]
[1753852166247,2.62605042,3808.0,3806.7,0.29987574]
[1753852166566,4.76618903,3807.2,3806.7,0.4372]
[1753852166767,0.8254,3807.3,3806.7,0.4372]
[1753852166937,4.116,3807.5,3806.5,0.4536]
[1753852166938,2.62664341,3807.2,3806.5,0.4536]
[1753852167138,2.62653379,3807.3,3806.5,0.4536]
[1753852167356,2.62680921,3806.9,3806.4,0.7365]
[1753852167943,3.08380921,3806.9,3806.4,0.7365]
[1753852168347,4.76618903,3806.5,3806.1,0.04]
[1753852168546,2.62729231,3806.2,3806.1,0.04]
[1753852168746,3.30652154,3806.2,3806.1,0.04]
[1753852169269,4.20422154,3806.2,3806.1,0.04]
[1753852171860,3.76352154,3806.2,3806.1,0.04]
[1753852172168,4.21672154,3806.2,3806.1,0.04]
[1753852172637,5.01072154,3806.2,3806.1,0.04]
[1753852173375,4.10052154,3806.2,3806.1,0.04]
[1753852173558,4.84522923,3806.2,3806.1,0.04]
[1753852174236,7.96792154,3806.2,3806.1,0.04]
[1753852174436,8.42112154,3806.2,3806.1,0.04]
[1753852175173,8.41912154,3806.2,3806.1,0.04]
[1753852175833,0.67922923,3806.2,3806.1,0.04]
[1753852176038,7.74189231,3806.2,3806.1,0.04]
[1753852176366,7.87309231,3806.2,3806.1,0.04]
[1753852177537,0.1312,3806.2,3806.1,0.04]
[1753852177737,4.2962,3806.2,3806.1,0.04]
[1753852178039,6.92349231,3806.2,3806.1,0.04]
[1753852178262,8.4724002,3806.2,3806.1,0.04]
[1753852178965,5.84510789,3806.2,3806.1,0.04]
[1753852179568,4.7916,3806.2,3806.1,0.04]
[1753852179869,5.2806,3806.2,3806.1,0.04]
[1753852181375,4.7852,3806.2,3806.1,0.04]
[1753852181776,5.2806,3806.2,3806.1,0.04]
[1753852182274,4.2962,3806.2,3806.1,0.04]
[1753852182476,0.1312,3806.2,3806.1,0.4872]
[1753852182775,4.2882,3806.2,3806.1,0.4872]
[1753852184378,4.2882,3806.2,3806.1,0.04]
[1753852187794,4.76656,3806.2,3806.1,0.04]
[1753852187980,5.26196,3806.2,3805.6,0.7275]
[1753852188291,0.1312,3805.8,3805.6,0.7275]
[1753852188693,0.1312,3805.8,3805.6,1.2165]
[1753852188857,0.1312,3805.8,3805.6,1.1747]
[1753852189062,0.1312,3805.8,3805.6,0.4472]
[1753852189288,0.1312,3805.8,3805.3,0.9362]
[1753852189467,0.1312,3805.5,3805.3,0.489]
[1753852189662,0.1312,3805.5,3805.4,0.4472]
[1753852190590,0.1312,3805.5,3805.4,0.3972]
[1753852190793,0.1312,3805.5,3805.1,0.04]
[1753852190970,0.1312,3805.2,3805.1,0.04]
[1753852191172,3.25458276,3805.2,3805.1,0.04]
[1753852191376,1.94110828,3805.2,3805.1,0.04]
[1753852191702,1.48790828,3805.2,3805.1,0.04]
[1753852192263,5.13750828,3805.2,3805.1,0.04]
[1753852192474,4.2762,3805.2,3805.1,0.04]
[1753852192777,4.47654657,3805.2,3805.1,0.04]
[1753852194375,5.42514657,3805.2,3805.1,0.04]
[1753852194684,8.05312933,3805.2,3805.1,0.04]
[1753852194999,4.9762317,3805.2,3805.1,0.04]
[1753852195171,17.54562073,3805.2,3805.1,0.04]
[1753852195579,6.00944894,3805.2,3805.1,0.04]
[1753852195763,12.7784317,3805.2,3805.1,0.04]
[1753852196562,5.55624894,3805.2,3805.1,0.04]
[1753852196763,12.3272317,3805.2,3805.1,0.04]
[1753852197394,5.55624894,3805.2,3805.1,0.04]
[1753852197699,4.142,3805.2,3805.1,0.04]
[1753852197999,4.141,3805.2,3805.1,0.04]
[1753852198213,4.6364,3805.2,3805.1,0.04]
[1753852198495,8.72058276,3805.2,3805.1,0.04]
[1753852198697,11.72058276,3805.2,3805.1,0.04]
[1753852198999,13.15543864,3805.2,3805.1,0.04]
[1753852199294,17.92162767,3805.2,3805.1,0.04]
[1753852201700,8.06583864,3805.2,3805.1,0.04]
[1753852201903,2.62853538,3804.4,3804.3,0.10262722]
[1753852202068,4.147,3804.4,3804.3,0.10262722]
[1753852202803,6.77553538,3804.4,3804.3,0.10262722]
[1753852203401,7.27144608,3804.4,3804.3,0.10262722]
[1753852203580,7.73684608,3804.4,3804.3,0.10262722]
[1753852203903,4.6429107,3804.4,3804.3,0.10262722]
[1753852204300,2.62915076,3803.6,3802.6,0.7275]
[1753852204622,4.67581182,3803.5,3803.2,0.8982]
[1753852204765,0.8105,3803.4,3802.3,2.62998091]
[1753852204969,4.162,3803.3,3802.8,1.1582]
[1753852205206,0.1312,3803.2,3802.8,1.1582]
[1753852205407,0.9417,3803.2,3802.7,0.4307]
[1753852205777,0.32700708,3803.2,3802.7,0.4307]
[1753852207306,2.02739027,3803.2,3802.7,0.4307]
[1753852207888,1.56199027,3803.2,3802.7,0.4307]
[1753852209280,4.48600708,3803.2,3802.7,0.4307]
[1753852211281,4.95140708,3803.2,3802.7,0.4307]
[1753852211485,4.48600708,3803.2,3802.7,0.4307]
[1753852212327,4.95140708,3803.2,3802.7,0.4307]
[1753852214018,4.47800708,3803.2,3802.7,1.1582]
[1753852214238,5.44896669,3803.2,3802.7,1.1582]
[1753852214822,5.44796669,3803.2,3802.7,1.6257]
[1753852214981,4.47700708,3803.2,3802.7,1.6257]
[1753852215382,4.47700708,3803.2,3803.1,1.4707]
[1753852215383,0.32700708,3803.2,3803.1,1.4707]
[1753852215588,0.32700708,3803.2,3803.1,1.9382]
[1753852215811,0.19580708,3803.2,3803.1,4.56763388]
[1753852215985,0.1312,3803.4,3803.1,2.6657]
[1753852216191,0.1312,3803.4,3803.1,1.7675]
[1753852216495,0.1312,3803.4,3803.2,0.8982]
[1753852216899,0.1312,3803.4,3803.3,0.4307]
[1753852217984,0.1312,3803.4,3803.1,1.7675]
[1753852218242,0.1312,3803.2,3803.1,1.7675]
[1753852218389,0.1312,3803.2,3803.1,1.04]
[1753852218791,4.148,3803.7,3803.1,1.9382]
[1753852219012,4.145,3803.6,3803.2,0.8982]
[1753852219220,0.1312,3803.4,3803.3,1.6257]
[1753852219417,0.1312,3803.4,3803.3,0.7275]
[1753852220088,4.145,3803.9,3803.3,1.6257]
[1753852220089,0.1312,3803.6,3803.3,1.6257]
[1753852220289,0.1312,3803.6,3803.3,0.7275]
[1753852220490,4.145,3803.9,3803.4,0.8982]
[1753852220690,0.1312,3803.8,3803.5,0.8982]
[1753852221019,0.1312,3803.8,3803.6,0.8982]
[1753852221220,4.143,3804.3,3803.7,0.4307]
[1753852221418,0.1312,3803.9,3803.7,0.4307]
[1753852221718,0.1312,3803.9,3803.4,0.4307]
[1753852222026,0.1312,3803.9,3803.5,0.4307]
[1753852222352,0.1312,3803.9,3803.3,1.3262]
[1753852222507,0.1312,3803.9,3803.6,0.4307]
[1753852223207,0.1312,3803.9,3803.3,1.195]
[1753852223208,0.1312,3803.9,3803.7,0.4307]
[1753852224606,0.1312,3803.9,3803.3,1.195]
[1753852224858,0.1312,3803.9,3803.4,0.4307]
[1753852225001,0.1312,3803.9,3803.3,1.195]
[1753852225203,0.1312,3803.9,3803.4,0.4307]
[1753852225405,0.1312,3803.9,3803.5,0.8982]
[1753852226057,0.1312,3804.0,3803.7,0.7275]
[1753852226255,4.76618903,3805.1,3804.0,2.628811]
[1753852226256,4.136,3804.8,3804.0,2.628811]
[1753852226420,2.38725588,3805.2,3804.2,0.7275]
[1753852226624,0.1312,3804.7,3804.3,0.8982]
[1753852226823,0.1312,3804.7,3804.2,3.48736361]
[1753852226824,0.1312,3804.7,3804.4,0.8982]
[1753852227005,0.1312,3804.9,3804.4,3.52672765]
[1753852227210,0.1312,3804.9,3804.5,5.0342]
[1753852227405,0.1312,3805.3,3804.7,2.75951122]
[1753852227706,0.1312,3805.3,3804.8,0.8982]
[1753852227902,0.1312,3805.3,3804.9,2.62814488]
[1753852228130,0.33173475,3805.3,3805.0,0.8982]
[1753852228334,0.1312,3805.4,3805.0,0.8982]
[1753852228855,0.1312,3805.4,3805.1,0.4307]
[1753852229211,0.1312,3805.4,3805.2,0.4307]
[1753852229949,0.1312,3805.4,3805.3,0.4307]
[1753852230243,0.1312,3805.4,3804.9,4.7327]
[1753852230445,0.1312,3805.4,3805.0,0.4316]
[1753852230647,0.1312,3805.4,3805.1,0.4316]
[1753852230853,5.22448903,3805.3,3804.7,4.131]
[1753852231015,0.1312,3805.0,3804.7,4.131]
[1753852231443,0.6303,3805.0,3804.3,0.8587]
[1753852231746,0.6303,3805.0,3804.4,4.133]
[1753852232152,0.6303,3805.0,3804.3,0.8587]
[1753852232310,1.37744543,3805.0,3804.4,4.132]
[1753852232511,1.24624543,3805.0,3804.4,4.131]
[1753852232714,0.1312,3804.7,3804.4,4.131]
[1753852232910,0.1312,3804.7,3804.3,0.7275]
[1753852233150,0.6303,3804.7,3804.4,4.13]
[1753852233857,0.1312,3804.7,3804.4,4.5616]
[1753852234849,0.1312,3804.8,3804.5,0.9195]
[1753852235049,0.69906208,3805.4,3804.6,0.1312]
[1753852235050,0.1312,3805.2,3804.6,0.1312]
[1753852235346,0.1312,3804.8,3804.5,4.5596]
[1753852235716,0.1312,3804.8,3804.3,0.8587]
[1753852235916,0.6303,3804.8,3804.5,4.131]
[1753852236322,0.6303,3804.8,3804.4,0.4316]
[1753852236728,0.6303,3804.8,3804.4,4.5636]
[1753852237346,0.1312,3804.8,3804.4,4.5636]
[1753852237510,0.1312,3804.8,3804.4,0.4316]
[1753852237710,0.6303,3804.8,3804.5,4.13]
[1753852238253,0.6303,3804.8,3804.3,0.8587]
[1753852238450,0.1312,3804.6,3804.5,4.13]
[1753852238831,0.1312,3804.6,3804.5,4.129]
[1753852239034,0.1312,3804.6,3804.3,0.4316]
[1753852239232,0.1312,3804.6,3804.4,4.129]
[1753852239449,0.6303,3804.6,3804.4,4.129]
[1753852239624,0.6303,3804.6,3804.4,4.128]
[1753852239827,0.6303,3804.6,3804.1,2.75991926]
[1753852240135,0.6303,3804.6,3804.2,4.5596]
[1753852241068,0.6303,3804.6,3804.2,0.4316]
[1753852241264,0.6303,3804.6,3804.3,4.126]
[1753852241566,0.1312,3804.6,3804.3,0.4316]
[1753852241864,0.1312,3804.6,3804.4,4.126]
[1753852243368,0.9574,3804.5,3803.6,3.4316]
[1753852243536,0.6303,3804.4,3803.7,4.2532]
[1753852243735,0.1312,3804.2,3803.7,4.2532]
[1753852244069,0.6303,3804.2,3803.7,4.6848]
[1753852244245,0.4991,3804.1,3803.5,0.7275]
[1753852244445,0.1312,3803.8,3803.6,4.123]
[1753852244769,0.6303,3803.8,3803.4,0.4316]
[1753852244976,0.6303,3803.8,3803.7,4.125]
[1753852245666,0.1312,3803.8,3803.7,4.125]
[1753852246166,0.1312,3803.8,3803.7,4.124]
[1753852247042,0.6303,3803.8,3803.7,4.124]
[1753852247773,0.1312,3803.8,3803.4,0.4316]
[1753852247968,0.1312,3803.8,3803.5,4.123]
[1753852248744,0.1312,3803.8,3803.6,4.5506]
[1753852248945,1.2749,3804.3,3803.6,4.5506]
[1753852249166,0.1312,3803.9,3803.6,6.74807502]
[1753852249371,0.7706,3804.6,3803.9,0.7275]
[1753852249552,0.1312,3804.5,3804.1,2.62867609]
[1753852249864,0.1312,3804.5,3804.2,0.4316]
[1753852250068,0.1312,3804.5,3804.3,4.119]
[1753852250272,0.1312,3804.5,3804.3,4.5506]
[1753852250460,0.1312,3804.5,3804.3,4.119]
[1753852251374,0.1312,3804.5,3804.3,4.5506]
[1753852252598,0.1312,3804.5,3804.3,4.119]
[1753852252745,0.6303,3804.5,3804.3,4.119]
[1753852253279,0.1312,3804.5,3804.3,4.5506]
[1753852253788,0.1312,3804.5,3804.3,4.119]
[1753852253944,0.1312,3804.5,3804.4,0.4316]
[1753852254749,0.1312,3804.5,3804.3,4.119]
[1753852255092,0.9574,3804.4,3803.6,0.7275]
[1753852255251,0.4991,3804.3,3803.7,4.114]
[1753852255449,0.1312,3804.1,3803.7,4.114]
[1753852255751,0.1312,3804.1,3803.7,4.5456]
[1753852256545,0.6303,3804.1,3803.8,4.113]
[1753852256740,0.6303,3804.1,3803.9,4.112]
[1753852257076,0.4991,3804.0,3803.9,4.112]
[1753852257286,1.0886,3804.0,3803.9,4.112]
[1753852257749,0.6303,3804.0,3803.9,4.112]
[1753852258169,0.1312,3804.0,3803.9,4.112]
[1753852258448,0.6303,3804.0,3803.9,4.112]
[1753852259398,0.6303,3804.0,3803.8,4.11]
[1753852259698,0.4991,3804.0,3803.8,4.11]
[1753852259902,0.1312,3803.9,3803.8,4.11]
[1753852261300,0.59,3803.9,3803.8,4.11]
[1753852261674,0.59,3803.9,3803.2,0.5791]
[1753852261875,0.1312,3803.6,3803.3,4.106]
[1753852262080,0.1312,3803.6,3803.3,4.5539]
[1753852262279,0.1312,3803.6,3803.4,0.4479]
[1753852262915,0.8309,3804.6,3803.5,0.7275]
[1753852263113,2.6285433,3804.4,3803.4,4.106]
[1753852263327,0.1312,3803.7,3803.5,4.113]
[1753852263614,0.8309,3804.1,3803.5,4.113]
[1753852263764,0.1312,3803.7,3803.6,0.4479]
[1753852264187,0.1312,3803.7,3803.6,4.115]
[1753852264797,0.59,3803.7,3803.5,4.114]
[1753852264966,0.4588,3803.7,3803.4,4.114]
[1753852265166,0.4588,3803.7,3803.4,4.5619]
[1753852265370,0.1312,3803.5,3803.4,4.114]
[1753852265980,0.1312,3803.5,3803.4,4.5619]
[1753852267219,0.1312,3803.5,3803.4,4.115]
[1753852267820,0.8096,3803.4,3803.1,1.041]
[1753852268134,0.4588,3803.3,3803.1,1.041]
[1753852268426,0.1312,3803.2,3803.1,1.041]
[1753852268913,0.59,3803.2,3803.1,1.041]
[1753852269622,1.0518,3803.2,3803.1,1.041]
[1753852270294,3.68116474,3803.2,3803.1,1.041]
[1753852270493,4.41178001,3803.2,3803.1,1.041]
[1753852270907,1.78241527,3803.2,3803.1,1.041]
[1753852271090,1.0518,3803.2,3803.1,1.041]
[1753852271298,3.68116474,3803.2,3803.1,1.041]
[1753852272008,3.68116474,3803.2,3802.1,0.4879]
[1753852272009,2.62968252,3802.8,3802.1,0.04]
[1753852272215,0.1312,3802.2,3802.1,0.04]
[1753852272590,0.59,3802.2,3802.1,0.04]
[1753852274037,0.1312,3802.2,3802.1,0.4879]
[1753852274241,0.1312,3802.2,3802.1,0.04]
[1753852275143,0.19849618,3802.8,3802.1,0.968]
[1753852275342,0.1312,3802.4,3802.2,0.4479]
[1753852276133,0.1312,3802.4,3802.1,4.153]
[1753852276328,0.55574962,3802.8,3802.2,0.4479]
[1753852276529,0.1312,3802.3,3802.2,0.4479]
[1753852276845,0.1312,3802.3,3802.2,0.928]
[1753852278482,0.1312,3802.3,3802.2,0.4479]
[1753852278905,0.19819193,3802.8,3802.2,0.4479]
[1753852279105,0.1312,3802.4,3802.2,0.4479]
[1753852279402,0.1312,3802.4,3802.3,0.4479]
[1753852279629,0.1312,3802.4,3802.1,4.153]
[1753852279807,0.1312,3802.4,3802.2,0.4479]
[1753852280002,0.1312,3802.4,3802.1,4.6009]
[1753852280430,0.1312,3802.4,3802.1,4.153]
[1753852280626,0.1312,3802.4,3802.1,4.149]
[1753852280835,0.4588,3802.3,3802.1,4.149]
[1753852281738,0.4588,3802.2,3802.1,0.04]
[1753852281905,0.1312,3802.2,3802.1,0.04]
[1753852282106,0.59,3802.2,3802.1,0.04]
[1753852287757,0.1312,3802.2,3802.1,0.04]
[1753852287954,0.19459634,3802.8,3802.2,0.7275]
[1753852288153,0.1312,3802.7,3802.2,4.8275]
[1753852288310,0.1312,3802.7,3802.3,0.4479]
[1753852288511,0.64794,3803.4,3802.2,4.8275]
[1753852288512,0.19709289,3802.8,3802.4,0.95429917]
[1753852288814,0.1312,3803.1,3802.7,0.7275]
[1753852289014,0.33202,3803.1,3802.8,4.5489]
[1753852289745,0.79082,3803.1,3802.8,4.101]
[1753852290254,0.9206,3803.0,3802.4,0.7275]
[1753852290460,0.1312,3802.8,3802.5,4.1]
[1753852290993,0.4595,3802.7,3802.5,4.1]
[1753852292785,0.1312,3802.8,3802.5,4.1]
[1753852293130,0.19289783,3803.1,3802.6,0.9191]
[1753852293360,0.1312,3803.1,3802.7,1.6466]
[1753852293579,0.1312,3803.1,3802.8,5.0161]
[1753852294062,0.1312,3803.1,3802.9,0.4442]
[1753852295254,0.1312,3803.1,3802.8,4.097]
[1753852295454,0.5907,3803.1,3802.8,4.097]
[1753852295647,0.1312,3803.1,3802.8,4.097]
[1753852295860,0.4595,3803.0,3802.8,4.097]
[1753852296064,0.4595,3803.0,3802.6,0.5754]
[1753852296266,0.4595,3802.9,3802.4,0.1312]
[1753852296576,0.5907,3802.9,3802.7,4.094]
[1753852296869,0.1312,3802.9,3802.7,4.094]
[1753852297176,0.4595,3802.8,3802.7,4.094]
[1753852297533,0.1312,3802.9,3802.7,4.094]
[1753852298374,0.1312,3802.9,3802.7,4.092]
[1753852299486,3.55949072,3802.8,3802.1,0.041]
[1753852299639,2.76101266,3802.6,3802.1,4.134]
[1753852299965,0.1312,3802.2,3802.1,4.134]
[1753852300144,0.5907,3802.2,3802.1,4.134]
[1753852300345,3.22075628,3802.2,3802.1,4.134]
[1753852301171,3.22075628,3802.2,3802.1,0.041]
[1753852301375,3.94478864,3802.2,3802.1,4.134]
[1753852301580,1.31473236,3802.2,3802.1,4.134]
[1753852301878,4.41508864,3802.2,3802.1,0.041]
[1753852302176,8.20528864,3802.2,3802.1,0.041]
[1753852302378,2.10493236,3802.2,3802.1,0.041]
[1753852302746,0.7902,3802.8,3802.1,0.041]
[1753852302945,0.4595,3802.2,3802.1,0.041]
[1753852303246,0.7902,3802.2,3802.1,0.041]
[1753852303452,1.2497,3802.2,3802.1,0.041]
[1753852303683,0.4595,3802.2,3802.1,0.041]
[1753852304020,0.1312,3802.3,3802.1,0.041]
[1753852304226,1.71766441,3802.3,3802.1,0.041]
[1753852304818,0.4595,3802.2,3802.1,0.041]
[1753852305695,4.07188892,3802.2,3802.1,0.041]
[1753852305890,0.4595,3802.2,3802.1,0.041]
[1753852306098,0.1312,3802.3,3802.1,0.041]
[1753852306695,0.1312,3802.3,3802.2,0.4442]
[1753852307534,1.2811,3802.8,3802.2,0.4442]
[1753852307838,0.1312,3802.5,3802.2,0.4442]
[1753852308038,0.1312,3802.5,3802.3,0.4442]
[1753852310547,0.1312,3802.5,3802.1,4.156]
[1753852310912,0.4595,3802.4,3802.1,4.6002]
[1753852311111,0.4595,3802.4,3802.1,4.156]
[1753852311649,0.1312,3802.5,3802.1,4.156]
[1753852311844,0.1312,3802.5,3802.2,0.4442]
[1753852312458,0.1312,3802.5,3802.1,4.156]
[1753852312659,0.5907,3802.5,3802.1,4.156]
[1753852312850,0.1312,3802.5,3802.2,0.4442]
[1753852317259,0.5907,3802.5,3802.2,0.4442]
[1753852317763,0.1312,3802.5,3802.1,4.156]
[1753852318063,0.5907,3802.5,3802.1,4.6002]
[1753852318586,0.4595,3802.4,3802.2,4.104]
[1753852318767,0.1312,3802.5,3802.2,4.5482]
[1753852319565,0.5907,3802.5,3802.2,4.5482]
[1753852320472,0.1312,3802.5,3802.2,4.5482]
[1753852320676,1.3254,3802.4,3802.1,0.041]
[1753852320877,1.7605,3802.4,3802.1,0.041]
[1753852321182,2.63005628,3802.2,3802.1,0.041]
[1753852321386,3.56370571,3802.3,3802.1,0.041]
[1753852321595,1.63573595,3802.2,3802.1,0.041]
[1753852321900,5.06999223,3802.2,3802.1,0.041]
[1753852322941,8.06999223,3802.2,3802.1,0.041]
[1753852324559,7.63489223,3802.2,3802.1,0.041]
[1753852324963,8.06999223,3802.2,3802.1,0.041]
[1753852326981,4.106,3802.4,3802.1,0.041]
[1753852327154,4.106,3802.6,3802.1,0.5053]
[1753852327378,4.106,3802.6,3802.2,0.4643]
[1753852327561,4.106,3802.6,3802.1,0.041]
[1753852327562,0.4986,3802.5,3802.1,0.041]
[1753852327751,1.25193486,3802.5,3802.1,0.041]
[1753852327999,0.4986,3802.4,3802.1,0.041]
[1753852328171,0.75333486,3802.5,3802.1,0.5053]
[1753852328355,1.25193486,3802.5,3802.1,0.5053]
[1753852328557,0.53579349,3802.4,3802.1,0.041]
[1753852328757,1.03439349,3802.4,3802.1,0.041]
[1753852329264,0.53579349,3802.4,3802.1,0.041]
[1753852329462,0.4986,3802.3,3802.1,0.041]
[1753852329657,0.53649173,3802.2,3802.1,0.041]
[1753852329858,4.35354801,3802.2,3802.1,0.041]
[1753852330106,8.95514801,3802.2,3802.1,0.041]
[1753852330307,12.09723693,3802.2,3802.1,0.041]
[1753852330691,12.22843693,3802.2,3802.1,0.041]
[1753852331479,15.22843693,3802.2,3802.1,0.041]
[1753852332795,12.08634801,3802.2,3802.1,0.041]
[1753852337012,7.54824801,3802.2,3802.1,0.041]
[1753852337319,0.8831,3802.2,3802.1,0.041]
[1753852337483,0.1312,3802.2,3802.1,0.5053]
[1753852337807,0.1312,3802.2,3802.1,0.9645]
[1753852338908,0.1312,3802.2,3802.1,0.5053]
[1753852339068,0.1312,3802.2,3802.1,0.041]
[1753852340490,0.1312,3802.2,3802.1,0.5053]
[1753852340966,0.1312,3802.2,3802.1,0.041]
[1753852341577,3.36632819,3802.2,3802.1,0.041]
[1753852341781,5.07302819,3802.2,3802.1,0.041]
[1753852344214,4.13932819,3802.2,3802.1,0.041]
[1753852344375,4.63792819,3802.2,3802.1,0.041]
[1753852346226,4.13932819,3802.2,3802.1,0.041]
[1753852346823,4.63792819,3802.2,3802.1,0.041]
[1753852350236,5.07302819,3802.2,3802.1,0.041]
[1753852350625,8.07302819,3802.2,3802.1,0.041]
[1753852351135,7.63792819,3802.2,3802.1,0.041]
[1753852351437,8.09292819,3802.2,3802.1,0.041]
[1753852351639,8.22412819,3802.2,3802.1,0.041]
[1753852354821,11.85612819,3802.2,3802.1,0.041]
[1753852356431,4.27052819,3802.2,3802.1,0.041]
[1753852356652,6.84925628,3802.2,3802.1,0.4948]
[1753852357366,6.84925628,3802.2,3802.1,0.041]
[1753852357880,14.72392503,3802.2,3802.1,0.041]
[1753852359366,14.26892503,3802.2,3802.1,0.041]
[1753852359531,15.95880947,3802.2,3802.1,0.041]
[1753852360632,16.41380947,3802.2,3802.1,0.041]
[1753852363799,16.96380947,3802.2,3802.1,1e-08]
[1753852363945,39.751833,3801.8,3801.7,1e-08]
[1753852364151,47.10990175,3801.8,3801.7,1e-08]
[1753852364375,48.02980175,3801.8,3801.7,1e-08]
[1753852364580,45.25780175,3801.8,3801.7,1e-08]
[1753852364795,9.59451693,3801.2,3800.2,0.10262722]
[1753852365057,13.81071693,3801.2,3800.2,0.10262722]
[1753852365277,15.28061693,3801.2,3800.2,0.10262722]
[1753852366787,15.28061693,3801.2,3800.3,0.4538]
[1753852367154,15.38608193,3801.2,3800.3,0.4538]
[1753852367699,7.15221318,3801.2,3800.3,0.4538]
[1753852367849,12.21250041,3801.2,3800.6,0.4538]
[1753852368050,15.35636916,3801.2,3800.6,0.4538]
[1753852368869,12.21250041,3801.2,3800.6,0.4538]
[1753852369569,12.66750041,3801.2,3800.6,0.4538]
[1753852369817,12.21250041,3801.2,3800.2,0.55642722]
[1753852369970,12.21250041,3801.2,3800.5,0.4538]
[1753852370493,12.66750041,3801.2,3800.3,0.4538]
[1753852370703,7.66560041,3801.2,3800.3,0.4538]
[1753852370909,3.1312,3801.2,3801.1,0.4938]
[1753852371070,7.2122,3801.2,3801.1,0.9759]
[1753852371270,9.84294818,3801.2,3801.1,0.9759]
[1753852371574,7.2122,3801.2,3801.1,0.4938]
[1753852371770,9.84294818,3801.2,3801.1,0.04]
[1753852372184,3.1312,3801.2,3801.1,0.4938]
[1753852372391,4.2142,3801.2,3801.1,1.7034]
[1753852374394,0.1312,3801.2,3801.1,1.7034]
[1753852375289,0.1312,3801.2,3801.1,1.2213]
[1753852375615,2.76194818,3801.2,3801.1,0.4938]
[1753852376706,0.1312,3801.2,3801.1,0.4938]
[1753852377005,0.1312,3801.2,3801.1,0.9759]
[1753852377410,2.76194818,3801.2,3801.1,0.04]
[1753852377711,0.1312,3801.2,3801.1,0.4938]
[1753852377905,2.76194818,3801.2,3801.1,0.4938]
[1753852378912,0.1312,3801.2,3801.1,0.4938]
[1753852379416,1.07864449,3801.2,3801.1,0.04]
[1753852379608,2.76194818,3801.2,3801.1,0.04]
[1753852380078,3.22684818,3801.2,3801.1,0.04]
[1753852380279,3.24014818,3801.2,3801.1,0.04]
[1753852380723,5.76194818,3801.2,3801.1,0.04]
[1753852380876,7.04604818,3801.2,3801.1,0.04]
[1753852381081,8.89359885,3801.2,3801.1,0.04]
[1753852381797,8.89359885,3801.2,3801.1,0.041]
[1753852384135,12.06459885,3801.2,3801.1,0.041]
[1753852384800,7.18069885,3801.2,3801.1,0.041]
[1753852385002,0.1312,3801.2,3801.1,0.4915]
[1753852385203,0.1312,3801.2,3801.1,1.6883]
[1753852385389,0.1312,3801.2,3801.1,0.041]
[1753852385585,0.1312,3801.2,3801.1,0.4915]
[1753852386218,3.24014818,3801.2,3801.1,0.041]
[1753852386412,3.92413217,3801.2,3801.1,0.041]
[1753852386614,4.70843217,3801.2,3801.1,0.041]
[1753852387927,3.44593217,3801.2,3801.1,0.041]
[1753852389533,3.92413217,3801.2,3801.1,0.041]
[1753852389695,6.92413217,3801.2,3801.1,0.041]
[1753852389890,7.35293217,3801.2,3801.1,0.041]
[1753852390346,2.63102504,3800.8,3800.7,0.001]
[1753852390631,6.84122504,3800.8,3800.7,0.001]
[1753852390798,11.53472504,3800.8,3800.7,0.001]
[1753852391193,11.72826258,3800.8,3800.7,0.001]
[1753852391950,11.83372458,3800.8,3800.7,0.001]
[1753852392149,13.43655799,3800.8,3800.7,0.001]
[1753852392310,2.6313712,3800.3,3800.2,0.10262722]
[1753852392510,6.8405712,3800.3,3800.2,0.10262722]
[1753852392827,7.3187712,3800.3,3800.2,0.10262722]